Workbook

Sheet 2023年江门市本级一般公共预算收入调整表 (hidden)
A1: 附件3-1
A2: 2023年江门市本级一般公共预算收入调整表
E3: 单位：万元
A4: 收 入
A5: 项目 | B5: 年初预算数 | C5: 第一次调整预算数 | D5: 调整额 | E5: 第二次调整预算数
A6: 一、税收收入 | B6: =SUM(B7:B19) -> 330,814 | C6: =SUM(C7:C19) -> 330,814 | D6: 0 | E6: =SUM(E7:E19) -> 330,814
A7: 增值税 | B7: 82,496 | C7: 82,496 | E7: 82,496
A8: 企业所得税 | B8: 35,791 | C8: 35,791 | E8: 35,791
A9: 个人所得税 | B9: 15,747 | C9: 15,747 | E9: 15,747
A10: 资源税 | B10: 2,170 | C10: 2,170 | E10: 2,170
A11: 城市维护建设税 | B11: 34,796 | C11: 34,796 | E11: 34,796
A12: 房产税 | B12: 35,959 | C12: 35,959 | E12: 35,959
A13: 印花税 | B13: 11,847 | C13: 11,847 | E13: 11,847
A14: 城镇土地使用税 | B14: 13,850 | C14: 13,850 | E14: 13,850
A15: 土地增值税 | B15: 34,793 | C15: 34,793 | E15: 34,793
A16: 车船税 | B16: 9,283 | C16: 9,283 | E16: 9,283
A17: 耕地占用税 | B17: 6,970 | C17: 6,970 | E17: 6,970
A18: 契税 | B18: 46,684 | C18: 46,684 | E18: 46,684
A19: 环保税 | B19: 428 | C19: 428 | E19: 428
A20: 二、非税收入 | B20: =SUM(B21:B26) -> 203,959 | C20: 203,959 | D20: 0 | E20: =SUM(E21:E26) -> 203,959
A21: 专项收入 | B21: 46,080 | C21: 46,080 | E21: 46,080
A22: 行政事业性收费收入 | B22: 21,670 | C22: 21,670 | E22: 21,670
A23: 罚没收入 | B23: 26,021 | C23: 26,021 | E23: 26,021
A24: 国有资本经营收入
A25: 国有资源(资产)有偿使用收入 | B25: 65,098 | C25: 65,098 | E25: 65,098
A26: 其他收入 | B26: 45,090 | C26: 45,090 | E26: 45,090
A29: 收入合计 | B29: =B6+B20 -> 534,772 | C29: 534,772 | D29: 0 | E29: =E6+E20 -> 534,772

Sheet 2024年江门市蓬江区一般公共预算支出调整表
A1: 附件1-1
A2: 蓬江区2024一般公共预算支出调整明细表 （按功能分类科目）
D3: 单位：万元
A4: 支 出
A5: 项目 | B5: 年初预算数 | C5: 调整额 | D5: 调整预算数
A6: 一、一般公共服务 | B6: 78,780 | C6: =D6-B6 -> -19,652 | D6: =57424+1105+599 -> 59,128
A7: 二、外交支出 | C7: 0
A8: 三、国防支出 | B8: 573 | C8: -99 | D8: 474
A9: 四、公共安全支出 | B9: 37,826 | C9: -8,675 | D9: 29,151
A10: 五、教育支出 | B10: 114,643 | C10: -800 | D10: =83808+30035 -> 113,843
A11: 六、科学技术支出 | B11: 9,513 | C11: -7,930 | D11: 1,583
A12: 七、文化旅游体育与传媒支出 | B12: 3,799 | C12: -2,116 | D12: 1,683
A13: 八、社会保障和就业支出 | B13: 79,687 | C13: -24,479 | D13: =67495-12287 -> 55,208
A14: 九、卫生健康支出 | B14: 45,431 | C14: -6,844 | D14: =40585-1998 -> 38,587
A15: 十、节能环保支出 | B15: 3,792 | C15: -2,046 | D15: 1,746
A16: 十一、城乡社区支出 | B16: 18,598 | C16: 6,315 | D16: 24,913
A17: 十二、农林水支出 | B17: 11,076 | C17: -5,323 | D17: =7624-1105-766 -> 5,753
A18: 十三、交通运输支出 | B18: 3,984 | C18: 4,906 | D18: 8,890
A19: 十四、资源勘探工业信息等支出 | B19: 17,172 | C19: -16,251 | D19: 921
A20: 十五、商业服务业等支出 | B20: 4,963 | C20: -3,845 | D20: 1,118
A21: 十六、金融支出 | B21: 133 | C21: -133
A22: 十七、援助其他地区支出 | C22: 0
A23: 十八、自然资源海洋气象等支出 | B23: 2,812 | C23: -1,210 | D23: 1,602
A24: 十九、住房保障支出 | B24: 40,170 | C24: -20,518 | D24: =35402-15750 -> 19,652
A25: 二十、粮油物资储备支出 | B25: 62 | C25: -5 | D25: 57
A26: 二十一、灾害防治及应急管理支出 | B26: 3,431 | C26: -1,126 | D26: =2138+167 -> 2,305
A27: 二十二、预备费 | B27: 5,200 | C27: -5,200 | D27: 0
A28: 二十三、其他支出 | B28: 9,871 | C28: -5,882 | D28: =3983+6 -> 3,989
A29: 二十四、债务付息支出 | B29: 10,518 | C29: 0 | D29: 10,518
A30: 二十五、债务发行费用支出 | B30: 1 | C30: 22 | D30: 23
A32: 支出合计 | B32: =SUM(B6:B30) -> 502,035 | C32: =SUM(C6:C30) -> -120,891 | D32: =SUM(D6:D30) -> 381,144
